bitfinex-derivatives/quotes_BNBF0:USTF0_20250708
["timestamp","ask_amount","ask_price","bid_price","bid_amount"]
[1751974474282,1.7004044,661.26,660.64,1.6984931]
[1751974474486,1.7004044,661.25,660.65,1.6984931]
[1751974475085,1.7004044,661.25,660.66,1.6984931]
[1751974475381,1.7004044,661.26,660.65,1.6984931]
[1751974476286,1.7004044,661.25,660.65,1.6984931]
[1751974476483,1.7004044,661.25,660.66,1.6984931]
[1751974477389,1.7004044,661.25,660.67,1.583]
[1751974478990,1.7004044,661.24,660.68,1.6984931]
[1751974479784,1.7004044,661.24,660.67,3.2814931]
[1751974480189,1.7004044,661.26,660.67,1.583]
[1751974482591,1.7004044,661.25,660.67,1.583]
[1751974484694,1.7004044,661.26,660.67,1.583]
[1751974485294,1.7004044,661.25,660.67,1.583]
[1751974488195,1.7004044,661.24,660.67,1.583]
[1751974490193,1.7004044,661.22,660.68,1.6984931]
[1751974491296,1.7004044,661.22,660.69,1.6984931]
[1751974491500,1.7004044,661.21,660.69,1.6984931]
[1751974491997,1.7004044,661.22,660.69,1.6984931]
[1751974492301,1.7004044,661.21,660.69,1.6984931]
[1751974493096,1.7004044,661.2,660.7,1.6984931]
[1751974494003,1.7004044,661.21,660.7,1.6984931]
[1751974494302,1.7004044,661.2,660.7,1.6984931]
[1751974494704,1.7004044,661.22,660.68,1.6984931]
[1751974496200,1.7004044,661.2,660.68,1.6984931]
[1751974497199,1.7004044,661.2,660.69,1.6984931]
[1751974498205,1.7004044,661.19,660.7,1.6984931]
[1751974499205,1.7004044,661.18,660.71,1.6984931]
[1751974499704,1.7004044,661.17,660.72,1.6984931]
[1751974500601,1.7004044,661.19,660.7,1.6984931]
[1751974501401,1.7004044,661.19,660.69,1.6984931]
[1751974503905,1.7004044,661.19,660.7,1.6984931]
[1751974504404,1.7004044,661.17,660.71,1.6984931]
[1751974504607,1.7004044,661.18,660.71,1.6984931]
[1751974505602,1.7004044,661.2,660.68,1.6984931]
[1751974506608,1.7004044,661.19,660.69,1.6984931]
[1751974507409,1.7004044,661.19,660.68,1.6984931]
[1751974507809,1.7004044,661.19,660.69,1.6984931]
[1751974508114,1.7004044,661.2,660.68,1.6984931]
[1751974509411,1.7004044,661.19,660.69,1.6984931]
[1751974511307,1.7004044,661.19,660.7,1.6984931]
[1751974512811,1.7004044,661.18,660.7,1.6984931]
[1751974514407,1.7004044,661.18,660.71,1.6984931]
[1751974515013,1.7004044,661.19,660.7,1.6984931]
[1751974515410,1.7004044,661.17,660.73,1.6984931]
[1751974515814,1.7004044,661.16,660.73,1.6984931]
[1751974517414,1.7004044,661.15,660.74,1.6984931]
[1751974517816,1.7004044,661.15,660.67,1.583]
[1751974517817,1.7004044,661.15,660.75,1.6984931]
[1751974519319,1.7004044,661.14,660.76,1.6984931]
[1751974521414,1.7004044,661.15,660.76,1.6984931]
[1751974524723,1.7004044,661.13,660.79,1.6984931]
[1751974526120,1.7004044,661.13,660.78,1.6984931]
[1751974526721,1.7004044,661.14,660.78,1.6984931]
[1751974527325,1.7004044,661.13,660.78,1.6984931]
[1751974529827,1.7004044,661.14,660.77,1.6984931]
[1751974530128,1.7004044,661.13,660.78,1.6984931]
[1751974531029,1.7004044,661.14,660.78,1.6984931]
[1751974531424,1.7004044,661.13,660.78,1.6984931]
[1751974537030,1.7004044,661.13,660.79,1.6984931]
[1751974537437,1.7004044,661.14,660.78,1.6984931]
[1751974538238,1.7004044,661.13,660.78,1.6984931]
[1751974538438,1.7004044,661.14,660.78,1.6984931]
[1751974539734,1.7004044,661.13,660.78,1.6984931]
[1751974540438,1.7004044,661.14,660.78,1.6984931]
[1751974540936,1.7004044,661.13,660.79,1.6984931]
[1751974542240,1.7004044,661.14,660.78,1.6984931]
[1751974545538,1.7004044,661.13,660.79,1.6984931]
[1751974546741,1.7004044,661.16,660.76,1.6984931]
[1751974547241,1.7004044,661.15,660.76,1.6984931]
[1751974550942,0.98895248,661.27,660.69,1.994]
[1751974550943,1.7004044,661.16,660.73,1.6984931]
[1751974551139,1.7004044,661.09,660.69,1.994]
[1751974551440,1.7004044,661.11,660.69,1.994]
[1751974553340,1.7004044,661.12,660.69,1.994]
[1751974553945,1.7004044,661.13,660.69,1.994]
[1751974555345,1.7004044,661.12,660.69,1.994]
[1751974555545,1.7004044,661.11,660.69,1.994]
[1751974557445,0.98895248,661.25,660.69,1.994]
[1751974557446,1.7004044,661.12,660.69,1.994]
[1751974560749,1.7004044,661.11,660.69,1.994]
[1751974561451,1.7004044,661.11,660.62,1.6984931]
[1751974563351,1.7004044,661.11,660.61,1.6984931]
[1751974563652,1.7004044,661.09,660.64,1.6984931]
[1751974564853,1.7004044,661.08,660.66,1.6984931]
[1751974565150,1.7004044,661.09,660.64,1.6984931]
[1751974568153,1.7004044,661.1,660.64,1.6984931]
[1751974568956,0.98743395,661.2,660.63,1.836]
[1751974569152,1.6991073,661.06,660.63,1.836]
[1751974570258,1.6991073,661.07,660.63,1.836]
[1751974570753,0.98743395,661.17,660.63,1.836]
[1751974570754,1.6991073,661.06,660.63,1.836]
[1751974571454,1.6991073,661.07,660.63,1.836]
[1751974571654,1.6991073,661.06,660.63,1.836]
[1751974572357,1.6991073,661.07,660.63,1.836]
[1751974573761,0.9869569,661.17,660.63,1.836]
[1751974573962,1.6984416,661.07,660.63,1.836]
[1751974574960,1.6984416,661.06,660.63,1.836]
[1751974576458,1.6984416,661.07,660.63,1.836]
[1751974581261,1.6984416,661.08,660.63,1.836]
[1751974581564,1.6984416,661.07,660.63,1.836]
[1751974582464,1.6984416,661.08,660.63,1.836]
[1751974583363,1.6984416,661.07,660.63,1.836]
[1751974584369,1.6984416,661.08,660.63,1.836]
[1751974585166,1.6984416,661.09,660.63,1.836]
[1751974586471,1.6984416,661.1,660.63,1.836]
[1751974587870,1.6984416,661.11,660.63,1.836]
[1751974591574,1.6984416,661.07,660.63,1.836]
[1751974594372,1.6984416,661.06,660.63,1.836]
[1751974597375,1.6984416,661.05,660.63,1.836]
[1751974597576,1.6984416,661.06,660.63,1.836]
[1751974597781,1.6984416,661.03,660.63,1.836]
[1751974598982,1.6984416,661.05,660.63,1.836]
[1751974603986,1.6984416,661.04,660.63,1.836]
[1751974607790,1.6984416,661.03,660.63,1.836]
[1751974607988,1.6984416,661.04,660.63,1.836]
[1751974608890,1.6984416,661.03,660.63,1.836]
[1751974610492,1.6984416,661.02,660.63,1.836]
[1751974615400,1.6984416,661.01,660.63,1.836]
[1751974617902,1.6984416,661.0,660.63,1.836]
[1751974620202,1.6984416,660.99,660.63,1.836]
[1751974621302,1.6984416,660.99,660.57,1.697198]
[1751974623304,1.6984416,660.99,660.58,1.697198]
[1751974625306,1.6984416,660.98,660.58,1.697198]
[1751974626505,1.6984416,660.98,660.59,1.697198]
[1751974626701,1.6984416,660.97,660.59,1.697198]
[1751974628301,1.6984416,660.97,660.6,1.697198]
[1751974628701,1.6984416,660.99,660.6,1.697198]
[1751974628901,1.6984416,660.99,660.57,1.697198]
[1751974637214,0.989142,661.1,660.54,1.425]
[1751974637414,1.7010405,661.0,660.55,1.6995585]
[1751974638314,1.7010405,661.0,660.56,1.6995585]
[1751974638512,1.7010405,661.0,660.55,1.6995585]
[1751974638816,1.7010405,660.99,660.57,1.6995585]
[1751974639015,1.7010405,661.0,660.57,1.6995585]
[1751974639416,1.7010405,660.99,660.57,1.6995585]
[1751974639713,1.7010405,661.0,660.57,1.6995585]
[1751974639913,1.7010405,660.99,660.57,1.6995585]
[1751974643918,1.7010405,660.99,660.58,1.6995585]
[1751974647125,1.7010405,660.98,660.59,1.6995585]
[1751974647324,1.7010405,660.97,660.6,1.6995585]
[1751974648022,1.7010405,660.97,660.61,1.6995585]
[1751974649525,0.98979006,661.07,660.62,1.6995585]
[1751974649526,1.7010405,660.96,660.62,1.6995585]
[1751974650320,1.7010405,660.96,660.61,1.6995585]
[1751974650526,1.7010405,660.96,660.62,1.6995585]
[1751974651320,1.7010405,660.95,660.62,1.6995585]
[1751974651625,1.7010405,660.95,660.63,1.6995585]
[1751974654223,1.7010405,660.96,660.61,1.6995585]
[1751974654727,1.7010405,660.96,660.62,1.6995585]
[1751974655322,1.7010405,660.96,660.61,1.6995585]
[1751974655823,1.7010405,660.96,660.62,1.6995585]
[1751974656628,1.7010405,660.97,660.59,1.6995585]
[1751974661432,1.7010405,660.98,660.59,1.6995585]
[1751974664131,1.7010405,660.97,660.6,1.6995585]
[1751974666332,1.7010405,660.95,660.63,1.6995585]
[1751974671242,1.7010405,660.96,660.62,1.6995585]
[1751974671439,2.2667681,661.07,660.62,1.6995585]
[1751974671440,1.7010405,660.95,660.62,1.6995585]
[1751974672836,1.7010405,660.95,660.63,1.6995585]
[1751974673141,1.7010405,660.95,660.62,1.6995585]
[1751974673442,1.7010405,660.95,660.63,1.6995585]
[1751974674239,0.98979006,661.05,660.52,3.7876747]
[1751974674438,1.7020596,660.94,660.62,1.7010212]
[1751974677142,0.98979006,661.04,660.52,3.7940283]
[1751974677143,1.7020596,660.99,660.56,1.7010212]
[1751974678837,1.7020596,660.99,660.55,1.7010212]
[1751974680940,1.7020596,660.99,660.56,1.7010212]
[1751974681344,1.7020596,660.99,660.55,1.7010212]
[1751974681540,1.7020596,661.01,660.53,1.7010212]
[1751974681744,1.7020596,661.07,660.57,1.7010212]
[1751974682045,1.7020596,661.13,660.65,1.7010212]
[1751974682443,1.7020596,661.15,660.63,1.7010212]
[1751974683140,1.7020596,661.16,660.64,1.7010212]
[1751974683347,1.7020596,661.15,660.66,1.7010212]
[1751974683546,1.7020596,661.16,660.64,1.7010212]
[1751974683746,1.7020596,661.18,660.66,1.7010212]
[1751974684448,1.7020596,661.19,660.65,1.7010212]
[1751974684747,1.7020596,661.18,660.67,1.7010212]
[1751974685546,1.7020596,661.21,660.68,1.7010212]
[1751974686346,1.7020596,661.21,660.67,1.7010212]
[1751974686547,1.7020596,661.22,660.67,1.7010212]
[1751974686748,1.7020596,661.2,660.71,1.7010212]
[1751974687244,1.7020596,661.2,660.59,2.2680283]
[1751974687245,1.7020596,661.2,660.7,1.7010212]
[1751974687444,1.7020596,661.21,660.7,1.7010212]
[1751974688849,1.7020596,661.22,660.68,1.7010212]
[1751974689451,1.7020596,661.23,660.68,1.7010212]
[1751974690451,1.7020596,661.23,660.67,1.7010212]
[1751974692256,1.7020596,661.24,660.67,1.7010212]
[1751974692756,1.7020596,661.24,660.66,1.7010212]
[1751974693456,1.7020596,661.24,660.67,1.7010212]
[1751974694557,1.7020596,661.24,660.66,1.7010212]
[1751974695156,1.7020596,661.24,660.67,1.7010212]
[1751974695659,1.7020596,661.24,660.66,1.7010212]
[1751974696954,1.7020596,661.24,660.67,1.7010212]
[1751974698654,1.7020596,661.24,660.54,2.2680283]
[1751974698655,1.7020596,661.23,660.69,1.7010212]
[1751974700055,1.7020596,661.25,660.65,1.7010212]
[1751974701456,1.7020596,661.26,660.65,1.7010212]
[1751974703956,1.7020596,661.26,660.64,1.7010212]
[1751974707362,1.7020596,661.27,660.64,1.7010212]
[1751974707761,1.7020596,661.26,660.64,1.7010212]
[1751974708361,1.7020596,661.27,660.64,1.7010212]
[1751974710066,0.26323851,661.44,660.52,1.526]
[1751974710067,1.7020596,661.25,660.67,1.7010212]
[1751974711162,1.7020596,661.25,660.66,1.7010212]
[1751974711770,1.7020596,661.27,660.64,1.7010212]
[1751974712068,1.7020596,661.33,660.55,1.7010212]
[1751974713066,1.7020596,661.32,660.55,1.7010212]
[1751974715170,1.7020596,661.32,660.56,1.368]
[1751974718476,1.7020596,661.32,660.56,3.0690212]
[1751974721884,1.7020596,661.27,660.63,1.7010212]
[1751974723386,1.7020596,661.27,660.64,1.7010212]
[1751974723680,1.6958203,661.27,660.64,1.6934107]
[1751974723886,1.6958203,661.27,660.63,1.6934107]
[1751974724483,1.6958203,661.27,660.64,1.6934107]
[1751974724784,1.6958203,661.26,660.64,1.6934107]
[1751974725989,1.6958203,661.28,660.61,1.6934107]
[1751974727290,1.6958203,661.27,660.62,1.6934107]
[1751974727791,1.6958203,661.26,660.64,1.6934107]
[1751974728086,1.6958203,661.26,660.65,1.6934107]
[1751974729386,1.6965942,661.26,660.65,1.69416377]
[1751974730288,1.6965942,661.25,660.66,1.69416377]
[1751974730591,1.6965942,661.25,660.65,1.69416377]
[1751974730788,1.6965942,661.25,660.66,1.69416377]
[1751974732389,1.6965942,661.24,660.67,1.69416377]
[1751974734296,0.98661829,661.36,660.56,1.368]
[1751974734297,1.6965942,661.23,660.68,1.69416377]
[1751974735295,0.26323851,661.44,660.64,1.69416377]
[1751974735296,1.6965942,661.26,660.64,1.69416377]
[1751974735897,1.6965942,661.25,660.65,1.69416377]
[1751974736294,1.6965942,661.24,660.66,1.69416377]
[1751974736798,1.6965942,661.24,660.65,1.69416377]
[1751974737298,1.6965942,661.24,660.66,1.69416377]
[1751974737498,1.6965942,661.23,660.66,1.69416377]
[1751974738195,1.6965942,661.24,660.65,1.69416377]
[1751974738401,1.6965942,661.23,660.66,1.69416377]
[1751974739000,1.6965942,661.24,660.65,1.69416377]
[1751974739299,1.6965942,661.23,660.66,1.69416377]
[1751974740400,1.6965942,661.23,660.67,1.69416377]
[1751974741598,1.6965942,661.2,660.69,1.69416377]
[1751974743400,1.6965942,661.19,660.7,1.69416377]
[1751974743600,1.6965942,661.2,660.69,1.69416377]
[1751974745205,1.6965942,661.18,660.71,1.69416377]
[1751974747406,1.6965942,661.17,660.71,1.69416377]
[1751974748210,1.6965942,661.17,660.72,1.69416377]
[1751974748809,1.6965942,661.15,660.74,1.69416377]
[1751974749507,1.6965942,661.16,660.74,1.69416377]
[1751974753416,1.6965942,661.15,660.75,1.69416377]
[1751974754115,1.6965942,661.13,660.77,1.69416377]
[1751974754511,1.6965942,661.15,660.74,1.69416377]
[1751974756223,1.6965942,661.15,660.6,2.2680283]
[1751974756224,1.6965942,661.15,660.75,1.69416377]
[1751974760017,1.6965942,661.15,660.71,1.563]
[1751974760018,1.6965942,661.15,660.76,1.69416377]
[1751974760618,1.6965942,661.15,660.75,1.69416377]
[1751974764222,1.70170909,661.14,660.76,1.69952193]
[1751974765421,1.70170909,661.14,660.77,1.69952193]
[1751974766419,1.70170909,661.14,660.76,1.69952193]
[1751974768423,1.70170909,661.14,660.77,1.69952193]
[1751974771023,1.70170909,661.13,660.78,1.69952193]
[1751974773830,1.70170909,661.13,660.71,1.563]
[1751974773831,1.70170909,661.14,660.76,1.69952193]
[1751974775627,2.69165789,661.26,660.71,1.563]
[1751974775830,1.70170909,661.26,660.71,1.563]
[1751974776832,1.70170909,661.19,660.71,1.563]
[1751974777232,1.70170909,661.2,660.71,1.563]
[1751974778232,1.70170909,661.21,660.71,1.563]
[1751974779334,1.70170909,661.21,660.51,0.26327536]
[1751974780133,1.70170909,661.22,660.51,0.26327536]
[1751974782535,1.70170909,661.22,660.52,1.56]
[1751974784332,1.70170909,661.23,660.52,1.56]
[1751974785535,1.70170909,661.15,660.6,1.69952193]
[1751974789242,1.70170909,661.16,660.6,1.69952193]
[1751974790745,1.70170909,661.15,660.61,1.69952193]
[1751974792346,1.70170909,661.15,660.52,1.56]
[1751974792347,1.70170909,661.14,660.63,1.69952193]
[1751974793345,1.70170909,661.13,660.64,1.69952193]
[1751974794148,1.70170909,661.12,660.65,1.69952193]
[1751974795044,1.70170909,661.11,660.67,1.69952193]
[1751974796049,1.70170909,661.1,660.68,1.69952193]
[1751974798750,0.98974157,661.2,660.66,1.69952193]
[1751974798751,1.70170909,661.11,660.66,1.69952193]
[1751974801453,1.70170909,661.1,660.68,1.69952193]
[1751974802252,1.70170909,661.11,660.68,1.69952193]
[1751974802453,1.69939203,661.14,660.7,1.69745626]
[1751974804454,1.69939203,661.15,660.68,1.69745626]
[1751974805354,1.69939203,661.19,660.71,1.69745626]
[1751974805552,1.69939203,661.19,660.72,1.69745626]
[1751974806551,1.69939203,661.2,660.71,1.69745626]
[1751974807251,1.69939203,661.19,660.71,1.69745626]
[1751974808050,1.69939203,661.2,660.7,1.69745626]
[1751974811757,1.69939203,661.22,660.67,1.69745626]
[1751974814054,1.69939203,661.22,660.66,1.69745626]
[1751974814259,1.69939203,661.22,660.67,1.69745626]
[1751974817160,1.69939203,661.22,660.66,1.69745626]
[1751974818455,1.69939203,661.22,660.67,1.69745626]
[1751974821661,1.69939203,661.21,660.69,1.69745626]
[1751974822262,1.69939203,661.22,660.68,1.69745626]
[1751974823461,1.69939203,661.21,660.68,1.69745626]
[1751974823765,1.69939203,661.22,660.68,1.69745626]
[1751974823965,1.69939203,661.21,660.69,1.69745626]
[1751974826767,1.69939203,661.2,660.69,1.69745626]
[1751974826965,1.69939203,661.19,660.71,1.69745626]
[1751974828167,1.69939203,661.21,660.68,1.69745626]
[1751974832369,1.69939203,661.2,660.69,1.69745626]
[1751974832670,1.69939203,661.21,660.69,1.69745626]
[1751974833365,1.69939203,661.2,660.69,1.69745626]
[1751974833666,1.69939203,661.2,660.7,1.69745626]
[1751974836069,1.69939203,661.2,660.71,1.395]
[1751974837971,1.69939203,661.17,660.74,1.69745626]
[1751974839972,1.69939203,661.24,660.71,1.395]
[1751974843674,1.69939203,661.26,660.71,1.395]
[1751974844375,1.25183935,661.44,660.71,1.395]
[1751974844376,1.69939203,661.27,660.71,1.395]
[1751974845471,1.69939203,661.29,660.71,1.395]
[1751974845774,1.69939203,661.3,660.71,1.395]
[1751974846370,1.69939203,661.31,660.71,1.395]
[1751974846574,1.69939203,661.3,660.71,1.395]
[1751974846771,1.69939203,661.46,660.74,1.69745626]
[1751974847374,1.69939203,661.47,660.72,1.69745626]
[1751974848375,1.69939203,661.48,660.72,1.69745626]
[1751974849479,1.69939203,661.48,660.71,3.09245626]
[1751974850075,1.69939203,661.49,660.71,1.395]
[1751974850279,1.69939203,661.47,660.73,1.69745626]
[1751974850476,1.69939203,661.46,660.75,1.69745626]
[1751974850680,1.69939203,661.43,660.79,1.69745626]
[1751974850975,1.69939203,661.42,660.81,1.69745626]
[1751974851380,1.69939203,661.42,660.8,1.69745626]
[1751974851581,1.69939203,661.39,660.85,1.69745626]
[1751974852481,1.69939203,661.4,660.84,1.69745626]
[1751974853278,1.69939203,661.41,660.83,1.69745626]
[1751974853680,1.69939203,661.41,660.84,1.69745626]
[1751974856283,1.69939203,661.41,660.83,1.69745626]
[1751974856881,1.69939203,661.43,660.85,1.69745626]
[1751974857780,1.69939203,661.44,660.86,1.69745626]
[1751974858385,1.69939203,661.44,660.73,2.2680283]
[1751974858386,1.69939203,661.44,660.85,1.69745626]
[1751974858680,1.69939203,661.44,660.86,1.69745626]
[1751974859580,1.69939203,661.45,660.85,1.69745626]
[1751974860484,1.69939203,661.46,660.84,1.69745626]
[1751974860883,1.69939203,661.46,660.83,1.69745626]
[1751974861486,1.69939203,661.47,660.82,1.69745626]
[1751974862885,1.69939203,661.47,660.81,1.69745626]
[1751974863380,1.69939203,661.48,660.81,1.69745626]
[1751974866285,1.69939203,661.48,660.8,1.69745626]
[1751974867389,1.69939203,661.49,660.8,1.69745626]
[1751974870389,1.69939203,661.48,660.81,1.69745626]
[1751974871889,1.69939203,661.47,660.83,1.69745626]
[1751974872688,1.69939203,661.47,660.71,1.395]
[1751974872689,1.69939203,661.47,660.84,1.69745626]
[1751974872889,1.69939203,661.47,660.83,1.69745626]
[1751974873489,0.98528555,661.58,660.71,3.6630283]
[1751974873785,1.6941471,661.47,660.83,1.690617]
[1751974873984,1.6941471,661.47,660.84,1.690617]
[1751974878589,1.6940439,661.49,660.8,1.6899489]
[1751974878788,1.6940439,661.49,660.81,1.6899489]
[1751974879089,1.6940439,661.5,660.79,1.6899489]
[1751974879391,1.6940502,661.5,660.79,1.6899341]
[1751974882296,1.6940502,661.5,660.8,1.6899341]
[1751974882696,1.6940502,661.5,660.79,1.6899341]
[1751974882996,1.6940502,661.5,660.8,1.6899341]
[1751974883196,1.6940502,661.5,660.79,1.6899341]
[1751974883593,1.6940502,661.5,660.8,1.6899341]
[1751974884297,1.6940502,661.49,660.8,1.6899341]
[1751974884698,1.6940502,661.5,660.79,1.6899341]
[1751974885295,1.6940502,661.49,660.8,1.6899341]
[1751974887302,1.6940502,661.51,660.77,1.6899341]
[1751974888403,1.6940502,661.5,660.79,1.6899341]
[1751974888699,1.6940502,661.49,660.8,1.6899341]
[1751974888998,1.6940502,661.49,660.8,3.7329341]
[1751974889898,1.6940502,661.48,660.8,3.7329341]
[1751974890402,1.6940502,661.48,660.81,1.6899341]
[1751974893299,1.6940502,661.47,660.81,1.6899341]
[1751974893706,1.6940502,661.48,660.81,1.6899341]
[1751974894006,1.6940502,661.48,660.8,3.7329341]
[1751974894411,1.6940502,661.48,660.81,1.6899341]
[1751974894605,1.6940502,661.47,660.81,1.6899341]
[1751974896306,1.6940502,661.47,660.82,1.6899341]
[1751974897004,1.6940502,661.44,660.85,1.6899341]
[1751974898210,1.6940502,661.44,660.86,1.6899341]
[1751974898811,1.6940502,661.43,660.86,1.6899341]
[1751974900414,1.6940502,661.42,660.87,1.6899341]
[1751974901110,1.6940502,661.42,660.88,1.6899341]
[1751974901315,1.6940502,661.41,660.88,1.6899341]
[1751974901516,1.6940502,661.41,660.89,1.6899341]
[1751974902316,1.6940502,661.4,660.9,1.6899341]
[1751974903413,1.6940502,661.39,660.91,1.6899341]
[1751974903617,1.6940502,661.38,660.92,1.6899341]
[1751974904115,1.6940502,661.38,660.8,2.043]
[1751974904116,1.6940502,661.38,660.93,1.6899341]
[1751974904414,1.6940502,661.37,660.94,1.6899341]
[1751974905615,1.6940502,661.35,660.95,1.6899341]
[1751974906221,1.6940502,661.33,660.98,1.6899341]
[1751974907122,0.98725018,661.43,660.87,2.2680283]
[1751974907423,1.7005732,661.33,660.98,1.696016]
[1751974908924,1.7005732,661.33,660.97,1.696016]
[1751974910921,1.7005732,661.37,660.92,1.696016]
[1751974916225,1.7005732,661.37,660.93,1.696016]
[1751974917329,1.7005732,661.36,660.93,1.696016]
[1751974920733,1.7005732,661.33,660.97,1.696016]
[1751974922433,1.7005732,661.34,660.96,1.696016]
[1751974923232,1.7005732,661.35,660.95,1.696016]
[1751974923635,1.7005732,661.34,660.96,1.696016]
[1751974926934,1.7005732,661.33,660.97,1.696016]
[1751974931838,1.7005732,661.33,660.98,1.696016]
[1751974932135,0.98899833,661.43,660.99,1.696016]
[1751974932136,1.7005732,661.32,660.99,1.696016]
[1751974932739,1.7005732,661.31,660.99,1.696016]
[1751974933038,1.7005732,661.32,660.99,1.696016]
[1751974933236,1.7005732,661.31,660.99,1.696016]
[1751974936742,1.7005732,661.32,660.98,1.696016]
[1751974938543,1.7005732,661.35,660.93,1.696016]
[1751974939546,1.7005732,661.36,660.93,1.696016]
[1751974940443,1.7005732,661.36,660.92,1.696016]
[1751974940643,1.7005732,661.36,660.93,1.838]
[1751974945549,1.7005732,661.37,660.93,1.838]
[1751974946546,1.7005732,661.36,660.93,1.838]
[1751974948349,1.7005732,661.35,660.94,1.696016]
[1751974949352,1.7005732,661.34,660.95,1.696016]
[1751974949853,1.7005732,661.38,660.93,1.838]
[1751974959260,1.7005732,661.37,660.93,1.838]
[1751974959760,0.2631569,661.67,660.93,1.838]
[1751974959761,1.7005732,661.32,660.97,1.696016]
[1751974960957,1.7005732,661.33,660.97,1.696016]
[1751974961157,1.7005732,661.33,660.96,1.696016]
[1751974963156,1.7005732,661.34,660.95,1.696016]
[1751974964259,1.7005732,661.35,660.94,1.696016]
[1751974968461,1.7005732,661.35,660.93,1.838]
[1751974968462,1.7005732,661.36,660.93,3.534016]
[1751974971065,1.7005732,661.35,660.93,3.534016]
[1751974972170,1.7005732,661.34,660.95,1.696016]
[1751974972971,1.7005732,661.34,660.96,1.696016]
[1751974974171,1.7005732,661.33,660.96,1.696016]
[1751974975569,1.7012353,661.33,660.96,1.6968444]
[1751974978074,1.7012353,661.33,660.97,1.6968444]
[1751974978274,1.7012353,661.31,660.99,1.6968444]
[1751974978972,1.7012353,661.32,660.99,1.6968444]
[1751974981979,1.7012353,661.31,660.99,1.6968444]
[1751974982378,1.7012353,661.31,660.93,1.838]
[1751974982379,1.7012353,661.32,660.97,1.6968444]
[1751974985781,1.7012353,661.32,660.93,1.838]
[1751974985782,1.7012353,661.37,660.93,1.838]
[1751974986081,0.2631569,661.67,660.93,1.838]
[1751974986082,1.7012353,661.4,660.93,1.838]
[1751974993683,1.7012353,661.4,660.86,1.6968444]
[1751974995083,1.7012353,661.4,660.85,1.6968444]
[1751974995879,1.7012353,661.35,660.93,1.6968444]
[1751974999986,1.7012353,661.35,660.94,1.6968444]
[1751975003889,1.7012353,661.39,660.92,1.512]
[1751975005591,1.7012353,661.38,660.92,1.512]
[1751975006187,1.7012353,661.39,660.92,1.512]
[1751975006392,1.7012353,661.38,660.92,1.512]
[1751975007088,1.7012353,661.39,660.92,1.512]
[1751975013693,1.7012353,661.35,660.94,1.6968444]
[1751975014394,1.7012353,661.35,660.95,1.6968444]
[1751975017492,1.7012353,661.34,660.95,1.6968444]
[1751975017698,1.7012353,661.34,660.94,1.6968444]
[1751975018696,1.7012353,661.35,660.94,1.6968444]
[1751975019699,1.7012353,661.33,660.96,1.6968444]
[1751975024206,1.7012353,661.33,660.9,1.533]
[1751975024207,1.7012353,661.34,660.95,1.6968444]
[1751975027608,1.7012353,661.34,660.96,1.6968444]
[1751975028510,1.7012353,661.33,660.96,1.6968444]
[1751975029114,0.98931776,661.45,660.9,1.533]
[1751975029314,1.7012721,661.33,660.96,1.6958828]
[1751975031216,1.7012721,661.34,660.94,1.6958828]
[1751975031516,1.7012721,661.35,660.94,1.6958828]
[1751975032714,1.7012721,661.37,660.9,3.2288828]
[1751975034213,1.7012721,661.37,660.91,1.6958828]
[1751975038212,0.98931776,661.52,660.9,1.533]
[1751975038417,1.7012457,661.37,660.91,1.6956122]
[1751975039018,0.98931776,661.51,660.9,1.533]
[1751975039019,1.7012457,661.39,660.9,1.533]
[1751975041014,1.7012457,661.38,660.9,1.533]
[1751975042119,1.7012457,661.39,660.9,1.533]
[1751975042519,1.7012457,661.37,660.9,3.2286122]
[1751975044121,1.7012457,661.38,660.9,3.2286122]
[1751975044315,1.7012457,661.37,660.9,3.2286122]
[1751975044515,1.7012457,661.38,660.9,3.2286122]
[1751975044916,1.7012457,661.37,660.9,3.2286122]
[1751975046522,1.4512705,661.36,660.9,3.2286122]
[1751975046722,1.4512705,661.35,660.9,3.2286122]
[1751975047016,1.4512705,661.34,660.91,1.6956122]
[1751975047222,1.4512705,661.33,660.91,1.6956122]
[1751975047421,1.4512705,661.32,660.91,1.6956122]
[1751975047721,1.4512705,661.31,660.91,1.6956122]
[1751975047922,1.4512705,661.3,660.91,1.6956122]
[1751975048116,1.4512705,661.29,660.91,1.6956122]
[1751975048422,1.4512725,661.28,660.91,1.6956122]
[1751975048622,1.4512725,661.27,660.91,1.6956122]
[1751975048818,1.4512725,661.26,660.94,1.6956122]
[1751975049122,1.4512725,661.25,660.94,1.6956122]
[1751975049327,1.4512725,661.24,660.94,1.6956122]
[1751975049522,1.4512725,661.23,660.94,1.6956122]
[1751975049721,1.4512725,661.33,660.94,1.6956122]
[1751975049921,1.4512725,661.32,660.95,1.6956122]
[1751975050118,1.4512725,661.31,660.95,1.6956122]
[1751975050323,1.4512725,661.3,660.92,1.6956122]
[1751975050621,1.4512725,661.29,660.92,1.6956122]